[Event "NOR-chT Codanserien 2017-18"]
[Site "Oslo"]
[Date "2018.01.14"]
[Round "6"]
[White "Galinsky, Timofey"]
[Black "Thanke, Bror"]
[Result "1-0"]
[ECO "A48"]
[WhiteElo "2376"]
[BlackElo "2154"]
[Annotator "ChessBase"]
[PlyCount "105"]
[EventDate "2018.??.??"]
[EventType "team-tourn"]
[EventCountry "NOR"]
[SourceTitle "playchess.com"]
[Source "ChessBase"]
[SourceQuality "1"]
[TimeControl "40/5400+30:1800+30"]

1. d4 {[%emt 0:04:16]} Nf6 {[%emt 0:00:10]} 2. Nf3 {[%emt 0:00:07]} g6 {[%emt 0:00:17]} 3. c3 {[%emt 0:00:32]} Bg7 {[%emt 0:00:37]} 4. Bg5 {[%emt 0:00:24]} O-O {[%emt 0:00:50]} 5. Nbd2 {[%emt 0:00:16]} d5 {[%emt 0:00:34]} 6. e3 {[%emt 0:00:10]} Nbd7 {[%emt 0:01:17]} 7. Be2 {[%emt 0:02:02]} Re8 {[%emt 0:02:05]} 8. b4 {[%emt 0:01:49]} e5 {[%emt 0:08:45]} 9. O-O {[%emt 0:00:32]} c6 {[%emt 0:04:49]} 10. a4 {[%emt 0:01:16]} Qc7 {[%emt 0:05:49]} 11. Qb3 {[%emt 0:03:33]} Nh5 {[%emt 0:19:22]} 12. Rfc1 {[%emt 0:05:37]} h6 {[%emt 0:06:00]} 13. Bh4 {[%emt 0:00:20]} g5 {[%emt 0:02:04]} 14. Bg3 {[%emt 0:00:05]} Nxg3 {[%emt 0:00:20]} 15. hxg3 {[%emt 0:00:06]} g4 {[%emt 0:05:07]} 16. Nh2 {[%emt 0:05:44]} h5 {[%emt 0:01:21]} 17. Bd3 {[%emt 0:01:41]} Nf8 {[%emt 0:02:35]} 18. Rab1 {[%emt 0:01:34]} Qe7 {[%emt 0:03:56]} 19. Nhf1 {[%emt 0:03:07]} Be6 {[%emt 0:05:09]} 20. Qc2 {[%emt 0:00:43]} Rad8 {[%emt 0:02:19]} 21. Nb3 {[%emt 0:00:59]} b6 {[%emt 0:05:14]} 22. b5 {[%emt 0:03:52]} c5 {[%emt 0:03:17]} 23. dxc5 {[%emt 0:00:24]} bxc5 {[%emt 0:00:05]} 24. c4 {[%emt 0:01:14]} d4 {[%emt 0:02:32]} 25. exd4 {[%emt 0:04:04]} exd4 {[%emt 0:00:28]} 26. Re1 {[%emt 0:01:25]} Nd7 {[%emt 0:01:26]} 27. Re2 {[%emt 0:07:41]} Ne5 {[%emt 0:02:39]} 28. Rbe1 {[%emt 0:01:39]} Qc7 {[%emt 0:01:08]} 29. Nfd2 {[%emt 0:00:47]} Nd7 {[%emt 0:06:46]} 30. Ne4 {[%emt 0:03:19]} Kf8 {[%emt 0:03:49]} 31. Qd2 {[%emt 0:08:05]} Bf5 {[%emt 0:00:50]} 32. Qf4 {[%emt 0:08:53]} Qxf4 {[%emt 0:01:03]} 33. gxf4 {[%emt 0:00:04]} Bxe4 {[%emt 0:00:16]} 34. Rxe4 {[%emt 0:01:41]} Rxe4 {[%emt 0:01:02]} 35. Rxe4 {[%emt 0:00:05]} Bf6 {[%emt 0:01:47]} 36. a5 {[%emt 0:00:38]} Rb8 {[%emt 0:00:49]} 37. Re1 {[%emt 0:02:44]} Be7 {[%emt 0:00:43]} 38. g3 {[%emt 0:00:39]} Bd6 {[%emt 0:00:59]} 39. Be4 {[%emt 0:01:23]} Rd8 {[%emt 0:01:07]} 40. Bc6 {[%emt 0:01:13]} Nb8 {[%emt 0:30:27]} 41. Bd5 {[%emt 0:30:12]} Nd7 {[%emt 0:00:19]} 42. Kg2 {[%emt 0:01:26]} Nf6 {[%emt 0:00:00]} 43. Bc6 {[%emt 0:00:00]} Rc8 {[%emt 0:00:00]} 44. a6 {[%emt 0:00:00]} Rb8 {[%emt 0:00:00]} 45. Bb7 {[%emt 0:00:00]} Nd7 {[%emt 0:00:00]} 46. Rh1 {[%emt 0:00:00]} Nb6 {[%emt 0:00:00]} 47. Rxh5 {[%emt 0:00:00]} Nxc4 {[%emt 0:00:00]} 48. Nxc5 {[%emt 0:00:00]} Bxc5 {[%emt 0:00:00]} 49. Rh8+ {[%emt 0:00:00]} Ke7 {[%emt 0:00:00]} 50. Rxb8 {[%emt 0:00:00]} d3 {[%emt 0:00:00]} 51. Bc8 {[%emt 0:00:00]} d2 {[%emt 0:01:45]} 52. Bxg4 {[%emt 0:00:00]} Kd6 {[%emt 0:02:24]} 53. Rb7 {[%emt 0:00:00]} 1-0

[Event "NOR-chT Codanserien 2017-18"]
[Site "Oslo"]
[Date "2018.01.14"]
[Round "6"]
[White "Galchenko, Matvey"]
[Black "Tisdall, Jonathan D"]
[Result "1/2-1/2"]
[ECO "A11"]
[WhiteElo "2367"]
[BlackElo "2403"]
[Annotator "ChessBase"]
[PlyCount "93"]
[EventDate "2018.??.??"]
[EventType "team-tourn"]
[EventCountry "NOR"]
[SourceTitle "playchess.com"]
[Source "ChessBase"]
[SourceQuality "1"]
[TimeControl "40/5400+30:1800+30"]

1. c4 {[%emt 0:00:00]} c6 {[%emt 0:09:08]} 2. e4 {[%emt 0:01:04]} e5 {[%emt 0:00:10]} 3. Nf3 {[%emt 0:02:10]} Nf6 {[%emt 0:00:30]} 4. Nc3 {[%emt 0:03:30]} d6 {[%emt 0:00:46]} 5. d4 {[%emt 0:00:58]} Nbd7 {[%emt 0:00:05]} 6. Be2 {[%emt 0:01:25]} Be7 {[%emt 0:00:07]} 7. O-O {[%emt 0:00:17]} O-O {[%emt 0:00:05]} 8. Re1 {[%emt 0:02:30]} Re8 {[%emt 0:00:15]} 9. h3 {[%emt 0:02:32]} Qc7 {[%emt 0:00:56]} 10. Bf1 {[%emt 0:01:58]} a6 {[%emt 0:04:29]} 11. d5 {[%emt 0:04:54]} a5 {[%emt 0:16:37]} 12. b3 {[%emt 0:04:53]} Nc5 {[%emt 0:02:15]} 13. Ba3 {[%emt 0:08:24]} Bd7 {[%emt 0:00:27]} 14. Rc1 {[%emt 0:09:29]} Rec8 {[%emt 0:05:47]} 15. dxc6 {[%emt 0:03:32]} Qxc6 {[%emt 0:13:33]} 16. Nd2 {[%emt 0:04:54]} Qb6 {[%emt 0:07:31]} 17. Qe2 {[%emt 0:06:30]} Ne6 {[%emt 0:05:58]} 18. Nf3 {[%emt 0:04:53]} Nd4 {[%emt 0:07:33]} 19. Qd3 {[%emt 0:05:19]} Nxf3+ {[%emt 0:04:16]} 20. Qxf3 {[%emt 0:00:35]} a4 {[%emt 0:05:32]} 21. b4 {[%emt 0:03:42]} Qa7 {[%emt 0:00:31]} 22. Qd1 {[%emt 0:01:41]} Be6 {[%emt 0:00:27]} 23. Nd5 {[%emt 0:01:39]} Bxd5 {[%emt 0:00:21]} 24. exd5 {[%emt 0:01:26]} b6 {[%emt 0:01:08]} 25. Qf3 {[%emt 0:02:26]} Qd7 {[%emt 0:01:02]} 26. Bd3 {[%emt 0:00:43]} g6 {[%emt 0:00:34]} 27. Kh2 {[%emt 0:02:49]} Nh5 {[%emt 0:01:07]} 28. Bf1 {[%emt 0:03:01]} f5 {[%emt 0:01:05]} 29. Qe3 {[%emt 0:01:23]} Rab8 {[%emt 0:00:31]} 30. c5 {[%emt 0:01:31]} bxc5 {[%emt 0:04:01]} 31. bxc5 {[%emt 0:01:21]} dxc5 {[%emt 0:02:05]} 32. Bxc5 {[%emt 0:00:32]} e4 {[%emt 0:00:51]} 33. g3 {[%emt 0:01:39]} Bxc5 {[%emt 0:03:34]} 34. Rxc5 {[%emt 0:00:02]} Rxc5 {[%emt 0:00:07]} 35. Qxc5 {[%emt 0:00:05]} Rb2 {[%emt 0:00:04]} 36. Qd4 {[%emt 0:01:21]} Qg7 {[%emt 0:00:18]} 37. Qe3 {[%emt 0:03:43]} Qe5 {[%emt 0:00:23]} 38. Rc1 {[%emt 0:02:26]} f4 {[%emt 0:01:24]} 39. gxf4 {[%emt 0:00:12]} Nxf4 {[%emt 0:00:11]} 40. Kh1 {[%emt 0:00:50]} Kg7 {[%emt 0:31:59]} 41. Rd1 {[%emt 0:30:47]} Rxa2 {[%emt 0:00:00]} 42. d6 {[%emt 0:00:00]} Ra1 {[%emt 0:00:00]} 43. Rxa1 {[%emt 0:00:00]} Qxa1 {[%emt 0:00:00]} 44. Qxf4 {[%emt 0:00:00]} Qxf1+ {[%emt 0:00:00]} 45. Kh2 {[%emt 0:00:00]} Qd3 {[%emt 0:00:00]} 46. Qe5+ {[%emt 0:00:00]} Kh6 {[%emt 0:00:00]} 47. Qf4+ {[%emt 0:00:00]} 1/2-1/2

[Event "NOR-chT Codanserien 2017-18"]
[Site "Oslo"]
[Date "2018.01.14"]
[Round "6"]
[White "Stokke, Kjetil"]
[Black "Hobber, Anders"]
[Result "1/2-1/2"]
[ECO "D10"]
[WhiteElo "2336"]
[BlackElo "2301"]
[Annotator "ChessBase"]
[PlyCount "39"]
[EventDate "2018.??.??"]
[EventType "team-tourn"]
[EventCountry "NOR"]
[SourceTitle "playchess.com"]
[Source "ChessBase"]
[SourceQuality "1"]
[TimeControl "40/5400+30:1800+30"]

1. d4 {[%emt 0:00:00]} d5 {[%emt 0:00:59]} 2. c4 {[%emt 0:00:00]} c6 {[%emt 0:00:33]} 3. cxd5 {[%emt 0:00:28]} cxd5 {[%emt 0:04:20]} 4. Bf4 {[%emt 0:00:54]} Nc6 {[%emt 0:00:38]} 5. e3 {[%emt 0:00:09]} Nf6 {[%emt 0:00:59]} 6. Nc3 {[%emt 0:00:07]} e6 {[%emt 0:04:28]} 7. Nf3 {[%emt 0:01:07]} Bd6 {[%emt 0:01:16]} 8. Bxd6 {[%emt 0:04:39]} Qxd6 {[%emt 0:00:27]} 9. Bd3 {[%emt 0:00:08]} O-O {[%emt 0:00:23]} 10. O-O {[%emt 0:00:19]} Bd7 {[%emt 0:01:17]} 11. a3 {[%emt 0:02:29]} Rfc8 {[%emt 0:03:45]} 12. Qe2 {[%emt 0:01:04]} a6 {[%emt 0:08:12]} 13. Rad1 {[%emt 0:02:35]} Be8 {[%emt 0:07:18]} 14. e4 {[%emt 0:05:24]} dxe4 {[%emt 0:00:46]} 15. Nxe4 {[%emt 0:00:08]} Qe7 {[%emt 0:05:57]} 16. Nc3 {[%emt 0:06:35]} Rd8 {[%emt 0:01:57]} 17. Rfe1 {[%emt 0:01:05]} Qd6 {[%emt 0:10:42]} 18. Bb1 {[%emt 0:11:14]} Rac8 {[%emt 0:02:33]} 19. Ba2 {[%emt 0:01:07]} Ne7 {[%emt 0:03:57]} 20. Ne5 {[%emt 0:10:52]} 1/2-1/2

[Event "NOR-chT Codanserien 2017-18"]
[Site "Oslo"]
[Date "2018.01.14"]
[Round "6"]
[White "Hole, Oystein"]
[Black "Haldorsen, Benjamin"]
[Result "0-1"]
[ECO "E97"]
[WhiteElo "2334"]
[BlackElo "2405"]
[Annotator "ChessBase"]
[PlyCount "62"]
[EventDate "2018.??.??"]
[EventType "team-tourn"]
[EventCountry "NOR"]
[SourceTitle "playchess.com"]
[Source "ChessBase"]
[SourceQuality "1"]
[TimeControl "40/5400+30:1800+30"]

1. Nf3 Nf6 {[%emt 0:04:40]} 2. c4 {[%emt 0:00:00]} g6 {[%emt 0:00:40]} 3. Nc3 {[%emt 0:00:00]} Bg7 {[%emt 0:00:26]} 4. e4 {[%emt 0:00:10]} d6 {[%emt 0:00:26]} 5. d4 {[%emt 0:00:08]} O-O {[%emt 0:00:08]} 6. Be2 {[%emt 0:00:04]} e5 {[%emt 0:00:18]} 7. O-O {[%emt 0:00:07]} Nc6 {[%emt 0:00:05]} 8. d5 {[%emt 0:00:24]} Ne7 {[%emt 0:00:12]} 9. b4 {[%emt 0:00:17]} a5 {[%emt 0:00:32]} 10. bxa5 {[%emt 0:01:23]} c5 {[%emt 0:02:17]} 11. Bd2 h6 {[%emt 0:01:25]} 12. a4 {[%emt 0:06:19]} Ne8 {[%emt 0:01:18]} 13. Ra3 {[%emt 0:03:55]} f5 {[%emt 0:04:55]} 14. Ne1 {[%emt 0:01:59]} Nf6 {[%emt 0:02:49]} 15. exf5 {[%emt 0:05:44]} Nxf5 16. Bd3 Rxa5 {[%emt 0:10:05]} 17. f4 {[%emt 0:04:38]} exf4 {[%emt 0:06:30]} 18. Rxf4 {[%emt 0:01:51]} Nh5 {[%emt 0:14:26]} 19. Rf3 {[%emt 0:01:58]} Bd4+ {[%emt 0:06:59]} 20. Kh1 {[%emt 0:00:20]} Qh4 {[%emt 0:06:55]} 21. Bxf5 {[%emt 0:37:27]} Bxf5 {[%emt 0:11:25]} 22. Ne2 {[%emt 0:02:20]} Raa8 {[%emt 0:03:05]} 23. Nxd4 {[%emt 0:05:15]} Qxd4 {[%emt 0:00:10]} 24. Nc2 {[%emt 0:00:59]} Qb2 {[%emt 0:08:39]} 25. Rac3 {[%emt 0:04:22]} Rxa4 {[%emt 0:03:18]} 26. Bxh6 {[%emt 0:04:08]} Re8 {[%emt 0:02:10]} 27. Bc1 {[%emt 0:01:54]} Bxc2 {[%emt 0:01:10]} 28. Qd2 {[%emt 0:00:15]} Ra1 {[%emt 0:02:52]} 29. Rf1 {[%emt 0:00:14]} Rxc1 {[%emt 0:00:20]} 30. Rxc1 {[%emt 0:00:10]} Re2 {[%emt 0:00:19]} 31. Rb3 {[%emt 0:01:46]} Bxb3 {[%emt 0:00:27]} 0-1

[Event "NOR-chT Codanserien 2017-18"]
[Site "Oslo"]
[Date "2018.01.14"]
[Round "6"]
[White "Risting, Eivind Olav"]
[Black "Berg, Johan"]
[Result "1/2-1/2"]
[ECO "A45"]
[WhiteElo "2309"]
[BlackElo "2212"]
[Annotator "ChessBase"]
[PlyCount "35"]
[EventDate "2018.??.??"]
[EventType "team-tourn"]
[EventCountry "NOR"]
[SourceTitle "playchess.com"]
[Source "ChessBase"]
[SourceQuality "1"]
[TimeControl "40/5400+30:1800+30"]

1. d4 {[%emt 0:00:16]} Nf6 {[%emt 0:00:19]} 2. Bg5 {[%emt 0:00:37]} Ne4 {[%emt 0:00:27]} 3. Bf4 {[%emt 0:00:05]} c5 {[%emt 0:03:09]} 4. f3 {[%emt 0:00:15]} Nf6 {[%emt 0:02:52]} 5. dxc5 {[%emt 0:00:31]} Qa5+ {[%emt 0:00:47]} 6. Qd2 {[%emt 0:03:04]} Qxc5 {[%emt 0:04:41]} 7. Nc3 {[%emt 0:00:52]} d6 {[%emt 0:03:24]} 8. e4 {[%emt 0:00:16]} a6 {[%emt 0:01:45]} 9. Be3 {[%emt 0:01:30]} Qc7 {[%emt 0:01:40]} 10. O-O-O {[%emt 0:00:10]} h5 {[%emt 0:12:47]} 11. Nge2 {[%emt 0:06:51]} Nbd7 {[%emt 0:05:26]} 12. Kb1 {[%emt 0:10:25]} b5 {[%emt 0:14:23]} 13. Nf4 {[%emt 0:24:43]} e6 {[%emt 0:10:09]} 14. Qf2 {[%emt 0:17:16]} Rb8 {[%emt 0:07:39]} 15. Rg1 {[%emt 0:02:08]} Ne5 {[%emt 0:01:25]} 16. Ba7 {[%emt 0:12:30]} Rb7 {[%emt 0:01:18]} 17. Bd4 {[%emt 0:00:06]} Bd7 {[%emt 0:03:11]} 18. Nd3 {[%emt 0:03:10]} 1/2-1/2

[Event "NOR-chT Codanserien 2017-18"]
[Site "Oslo"]
[Date "2018.01.14"]
[Round "6"]
[White "Gabrielsen, Stig"]
[Black "Andersen, Alf R"]
[Result "1-0"]
[ECO "C18"]
[WhiteElo "2307"]
[BlackElo "2164"]
[Annotator "ChessBase"]
[PlyCount "153"]
[EventDate "2018.??.??"]
[EventType "team-tourn"]
[EventCountry "NOR"]
[SourceTitle "playchess.com"]
[Source "ChessBase"]
[SourceQuality "1"]
[TimeControl "40/5400+30:1800+30"]

1. e4 {[%emt 0:00:00]} e6 {[%emt 0:00:19]} 2. d4 {[%emt 0:00:00]} d5 {[%emt 0:00:09]} 3. Nc3 {[%emt 0:00:00]} Bb4 {[%emt 0:00:12]} 4. e5 {[%emt 0:00:08]} c5 {[%emt 0:00:06]} 5. a3 {[%emt 0:00:06]} Bxc3+ {[%emt 0:00:05]} 6. bxc3 {[%emt 0:00:09]} Qa5 {[%emt 0:00:37]} 7. Bd2 {[%emt 0:00:12]} Qa4 {[%emt 0:00:16]} 8. Qg4 {[%emt 0:00:40]} g6 {[%emt 0:00:19]} 9. Nf3 {[%emt 0:00:51]} Nc6 {[%emt 0:10:24]} 10. Be2 {[%emt 0:09:39]} Bd7 {[%emt 0:06:59]} 11. O-O {[%emt 0:18:46]} c4 {[%emt 0:04:33]} 12. Rfb1 {[%emt 0:07:04]} O-O-O {[%emt 0:09:22]} 13. Qh4 {[%emt 0:07:36]} h6 {[%emt 0:08:50]} 14. Bd1 {[%emt 0:01:40]} Nge7 {[%emt 0:03:17]} 15. Qf6 {[%emt 0:01:14]} Qa5 {[%emt 0:11:29]} 16. a4 {[%emt 0:01:35]} Rh7 {[%emt 0:06:52]} 17. Rb5 {[%emt 0:03:05]} Qc7 {[%emt 0:00:16]} 18. Rab1 {[%emt 0:00:59]} Ng8 {[%emt 0:09:14]} 19. Qh4 {[%emt 0:00:26]} Na5 {[%emt 0:01:50]} 20. R5b4 {[%emt 0:05:15]} Bc6 {[%emt 0:00:33]} 21. Bc1 {[%emt 0:01:10]} Qd7 {[%emt 0:03:39]} 22. Ra1 {[%emt 0:02:35]} Ne7 {[%emt 0:01:51]} 23. Qh3 {[%emt 0:05:37]} Rdh8 {[%emt 0:01:27]} 24. Nd2 {[%emt 0:05:39]} g5 {[%emt 0:03:25]} 25. Bh5 {[%emt 0:01:56]} Qe8 {[%emt 0:03:54]} 26. Nf1 {[%emt 0:00:42]} Nf5 {[%emt 0:03:47]} 27. Qf3 {[%emt 0:07:59]} Kb8 {[%emt 0:03:55]} 28. h3 {[%emt 0:00:53]} Bd7 {[%emt 0:05:08]} 29. Nh2 {[%emt 0:00:59]} Nc6 {[%emt 0:00:47]} 30. Rbb1 {[%emt 0:01:42]} Nh4 {[%emt 0:00:33]} 31. Qd1 {[%emt 0:01:24]} Ne7 {[%emt 0:00:53]} 32. Ng4 {[%emt 0:00:47]} Ng8 {[%emt 0:00:21]} 33. a5 {[%emt 0:03:34]} Qd8 {[%emt 0:00:47]} 34. g3 {[%emt 0:04:15]} Nf5 {[%emt 0:00:12]} 35. Ba3 {[%emt 0:00:44]} Be8 {[%emt 0:00:49]} 36. Ra2 {[%emt 0:02:22]} Ka8 {[%emt 0:00:33]} 37. Bc5 {[%emt 0:03:32]} Ng7 {[%emt 0:00:40]} 38. Bb6 {[%emt 0:01:56]} Qc8 {[%emt 0:00:34]} 39. Nf6 {[%emt 0:01:01]} Nxf6 {[%emt 0:00:12]} 40. exf6 {[%emt 0:00:07]} Nxh5 {[%emt 0:30:47]} 41. Qxh5 {[%emt 0:30:49]} Bc6 {[%emt 0:00:30]} 42. Rb4 {[%emt 0:00:00]} Rg8 {[%emt 0:00:00]} 43. a6 bxa6 {[%emt 0:00:00]} 44. Bc5 {[%emt 0:00:00]} Rg6 {[%emt 0:00:00]} 45. Qe2 {[%emt 0:00:00]} Rh8 {[%emt 0:00:00]} 46. Qe5 {[%emt 0:00:00]} Rd8 {[%emt 0:00:00]} 47. Be7 {[%emt 0:00:00]} Bb5 {[%emt 0:00:00]} 48. Bxd8 {[%emt 0:00:00]} Qxd8 {[%emt 0:00:00]} 49. Rb1 {[%emt 0:00:00]} Rxf6 {[%emt 0:00:00]} 50. Raa1 {[%emt 0:00:00]} Rg6 {[%emt 0:00:00]} 51. Re1 {[%emt 0:00:00]} Kb7 {[%emt 0:00:00]} 52. Kg2 {[%emt 0:00:00]} a5 {[%emt 0:01:07]} 53. Rf1 {[%emt 0:00:05]} a6 {[%emt 0:00:49]} 54. f4 {[%emt 0:03:10]} gxf4 {[%emt 0:00:19]} 55. Qxf4 {[%emt 0:00:41]} f5 {[%emt 0:00:42]} 56. Rf2 {[%emt 0:00:40]} a4 {[%emt 0:00:38]} 57. Re1 {[%emt 0:00:36]} Qf8 {[%emt 0:01:59]} 58. Rfe2 {[%emt 0:00:28]} Bd7 {[%emt 0:00:32]} 59. Kh2 {[%emt 0:00:30]} Qa3 {[%emt 0:01:39]} 60. Rb1+ {[%emt 0:01:10]} Bb5 {[%emt 0:00:21]} 61. Qd2 {[%emt 0:01:17]} h5 {[%emt 0:01:01]} 62. Rbe1 {[%emt 0:01:40]} Bd7 {[%emt 0:00:30]} 63. Rb1+ {[%emt 0:00:48]} Bb5 {[%emt 0:00:04]} 64. Re5 {[%emt 0:00:14]} Ka7 {[%emt 0:01:39]} 65. Rb4 {[%emt 0:00:23]} Qa2 {[%emt 0:00:41]} 66. Re1 {[%emt 0:00:17]} h4 {[%emt 0:00:29]} 67. gxh4 {[%emt 0:00:11]} f4 {[%emt 0:00:23]} 68. Rf1 {[%emt 0:01:26]} Rf6 {[%emt 0:00:32]} 69. h5 {[%emt 0:00:32]} Be8 {[%emt 0:00:29]} 70. Rfb1 {[%emt 0:00:38]} Bb5 {[%emt 0:00:31]} 71. Qc1 {[%emt 0:00:17]} f3 {[%emt 0:00:37]} 72. Kg1 {[%emt 0:00:21]} f2+ {[%emt 0:00:29]} 73. Kf1 {[%emt 0:00:06]} Bc6 {[%emt 0:00:31]} 74. Ra1 {[%emt 0:00:16]} Qxa1 {[%emt 0:00:31]} 75. Qxa1 {[%emt 0:00:08]} a5 {[%emt 0:00:23]} 76. Rb1 {[%emt 0:00:12]} e5 {[%emt 0:00:28]} 77. Qb2 {[%emt 0:00:22]} 1-0

[Event "NOR-chT Codanserien 2017-18"]
[Site "Oslo"]
[Date "2018.01.14"]
[Round "6"]
[White "Ekeberg, Carl Fredrik"]
[Black "Mikalsen, Erlend"]
[Result "1/2-1/2"]
[ECO "E32"]
[WhiteElo "2278"]
[BlackElo "2307"]
[Annotator "ChessBase"]
[PlyCount "68"]
[EventDate "2018.??.??"]
[EventType "team-tourn"]
[EventCountry "NOR"]
[SourceTitle "playchess.com"]
[Source "ChessBase"]
[SourceQuality "1"]
[TimeControl "40/5400+30:1800+30"]

1. d4 {[%emt 0:00:00]} Nf6 {[%emt 0:02:18]} 2. c4 {[%emt 0:00:00]} e6 {[%emt 0:00:06]} 3. Nc3 {[%emt 0:00:00]} Bb4 {[%emt 0:00:07]} 4. Qc2 {[%emt 0:00:00]} O-O {[%emt 0:00:11]} 5. a3 {[%emt 0:00:01]} Bxc3+ {[%emt 0:00:06]} 6. Qxc3 {[%emt 0:00:05]} b6 {[%emt 0:00:33]} 7. Bg5 {[%emt 0:01:30]} Bb7 {[%emt 0:00:07]} 8. f3 {[%emt 0:00:27]} h6 {[%emt 0:00:36]} 9. Bh4 {[%emt 0:00:26]} d5 {[%emt 0:00:07]} 10. e3 {[%emt 0:00:35]} Nbd7 {[%emt 0:01:31]} 11. cxd5 {[%emt 0:01:16]} Nxd5 {[%emt 0:00:37]} 12. Bxd8 {[%emt 0:00:08]} Nxc3 {[%emt 0:00:05]} 13. Bh4 {[%emt 0:00:18]} Nd5 {[%emt 0:01:02]} 14. Bf2 {[%emt 0:00:39]} c5 {[%emt 0:04:53]} 15. Ne2 {[%emt 0:18:36]} f5 {[%emt 0:04:56]} 16. Rd1 {[%emt 0:06:55]} Rac8 {[%emt 0:09:29]} 17. dxc5 {[%emt 0:06:26]} Nxc5 {[%emt 0:06:18]} 18. Nd4 {[%emt 0:03:20]} Na4 {[%emt 0:03:40]} 19. Rb1 {[%emt 0:05:19]} e5 {[%emt 0:09:19]} 20. Nxf5 {[%emt 0:12:14]} Rxf5 {[%emt 0:01:45]} 21. e4 {[%emt 0:00:09]} Rg5 {[%emt 0:04:40]} 22. exd5 {[%emt 0:02:07]} Bxd5 {[%emt 0:00:14]} 23. Be3 {[%emt 0:03:54]} Rg6 {[%emt 0:00:29]} 24. Ba6 {[%emt 0:08:01]} Rf8 {[%emt 0:06:10]} 25. Kf2 {[%emt 0:09:11]} e4 {[%emt 0:00:43]} 26. f4 {[%emt 0:03:38]} Nc5 {[%emt 0:02:31]} 27. Be2 {[%emt 0:01:38]} Nd3+ {[%emt 0:00:14]} 28. Bxd3 {[%emt 0:00:41]} exd3 {[%emt 0:00:05]} 29. Rhg1 {[%emt 0:00:24]} Rc8 {[%emt 0:00:20]} 30. Rbd1 {[%emt 0:02:52]} Rc2+ {[%emt 0:02:46]} 31. Rd2 {[%emt 0:00:06]} Rxd2+ {[%emt 0:00:06]} 32. Bxd2 {[%emt 0:00:06]} Re6 {[%emt 0:00:02]} 33. Re1 {[%emt 0:00:51]} Rxe1 {[%emt 0:00:07]} 34. Bxe1 {[%emt 0:00:23]} Kf7 {[%emt 0:00:08]} 1/2-1/2

[Event "NOR-chT Codanserien 2017-18"]
[Site "Oslo"]
[Date "2018.01.14"]
[Round "6"]
[White "Flermoen, Peter"]
[Black "Aulin-Jansson, Joran"]
[Result "1-0"]
[ECO "B15"]
[WhiteElo "2259"]
[BlackElo "2273"]
[Annotator "ChessBase"]
[PlyCount "71"]
[EventDate "2018.??.??"]
[EventType "team-tourn"]
[EventCountry "NOR"]
[SourceTitle "playchess.com"]
[Source "ChessBase"]
[SourceQuality "1"]
[TimeControl "40/5400+30:1800+30"]

1. e4 {[%emt 0:00:00]} c6 {[%emt 0:00:06]} 2. d4 {[%emt 0:00:00]} d5 {[%emt 0:00:06]} 3. Nc3 {[%emt 0:00:00]} dxe4 {[%emt 0:00:04]} 4. Nxe4 {[%emt 0:00:00]} Nf6 {[%emt 0:00:16]} 5. Nxf6+ {[%emt 0:00:37]} exf6 {[%emt 0:00:06]} 6. Nf3 {[%emt 0:01:07]} Bd6 {[%emt 0:04:24]} 7. Bd3 {[%emt 0:02:28]} O-O {[%emt 0:00:08]} 8. O-O {[%emt 0:00:33]} Bg4 {[%emt 0:00:06]} 9. h3 {[%emt 0:01:36]} Bh5 {[%emt 0:00:04]} 10. Re1 {[%emt 0:09:24]} Nd7 {[%emt 0:01:04]} 11. Bf5 {[%emt 0:07:54]} Re8 {[%emt 0:02:55]} 12. Be3 {[%emt 0:02:39]} Nb6 {[%emt 0:01:59]} 13. g4 {[%emt 0:05:05]} Bg6 {[%emt 0:01:48]} 14. Nh4 {[%emt 0:03:30]} Bc7 {[%emt 0:00:58]} 15. Qf3 {[%emt 0:03:07]} Qd6 {[%emt 0:03:21]} 16. Rad1 {[%emt 0:11:21]} Re7 {[%emt 0:09:24]} 17. b3 {[%emt 0:01:36]} Rae8 {[%emt 0:09:24]} 18. c4 {[%emt 0:01:01]} Nd7 {[%emt 0:00:59]} 19. Re2 {[%emt 0:12:00]} Nf8 {[%emt 0:01:55]} 20. d5 {[%emt 0:03:17]} Nd7 {[%emt 0:05:35]} 21. Rdd2 {[%emt 0:05:57]} Ne5 {[%emt 0:05:56]} 22. Qg2 {[%emt 0:00:21]} cxd5 {[%emt 0:00:07]} 23. Rxd5 {[%emt 0:02:56]} Qa3 {[%emt 0:00:31]} 24. Rc2 {[%emt 0:05:06]} Nc6 {[%emt 0:03:40]} 25. Rd1 {[%emt 0:05:17]} Qa5 {[%emt 0:04:01]} 26. c5 {[%emt 0:02:20]} Bb8 {[%emt 0:17:18]} 27. Rcd2 {[%emt 0:00:36]} Ne5 {[%emt 0:09:00]} 28. Kh1 {[%emt 0:03:51]} Bc7 {[%emt 0:04:27]} 29. Qxb7 {[%emt 0:02:46]} h5 {[%emt 0:05:26]} 30. Bxg6 {[%emt 0:01:56]} Nxg6 {[%emt 0:03:37]} 31. Nf5 {[%emt 0:01:01]} Rxe3 {[%emt 0:00:14]} 32. Nxe3 {[%emt 0:00:47]} Bf4 {[%emt 0:03:54]} 33. b4 {[%emt 0:01:21]} Qa3 {[%emt 0:00:23]} 34. Rd8 {[%emt 0:00:33]} Rxd8 {[%emt 0:00:38]} 35. Rxd8+ {[%emt 0:00:11]} Kh7 {[%emt 0:00:02]} 36. gxh5 {[%emt 0:00:44]} 1-0

[Event "NOR-chT Codanserien 2017-18"]
[Site "Oslo"]
[Date "2018.01.14"]
[Round "6"]
[White "Skrondal, Inge Sandstad"]
[Black "Gullaksen, Eirik"]
[Result "1/2-1/2"]
[ECO "E91"]
[WhiteElo "2239"]
[BlackElo "2352"]
[Annotator "ChessBase"]
[PlyCount "75"]
[EventDate "2018.??.??"]
[EventType "team-tourn"]
[EventCountry "NOR"]
[SourceTitle "playchess.com"]
[Source "ChessBase"]
[SourceQuality "1"]
[TimeControl "40/5400+30:1800+30"]

1. Nf3 {[%emt 0:00:00]} Nf6 {[%emt 0:00:08]} 2. c4 {[%emt 0:00:00]} g6 {[%emt 0:00:13]} 3. Nc3 {[%emt 0:00:00]} Bg7 {[%emt 0:00:08]} 4. e4 {[%emt 0:00:00]} d6 {[%emt 0:00:22]} 5. d4 {[%emt 0:00:06]} O-O {[%emt 0:00:10]} 6. Be2 {[%emt 0:00:05]} Na6 {[%emt 0:00:18]} 7. O-O {[%emt 0:00:09]} e5 {[%emt 0:00:17]} 8. Be3 {[%emt 0:01:33]} Ng4 {[%emt 0:01:49]} 9. Bg5 {[%emt 0:00:06]} f6 {[%emt 0:00:38]} 10. Bh4 {[%emt 0:02:47]} Qe8 {[%emt 0:03:49]} 11. c5 {[%emt 0:19:12]} exd4 {[%emt 0:15:58]} 12. Nxd4 {[%emt 0:00:25]} dxc5 {[%emt 0:05:35]} 13. Nb3 {[%emt 0:01:47]} Ne5 {[%emt 0:10:05]} 14. f4 {[%emt 0:19:22]} Nf7 {[%emt 0:05:42]} 15. Nd5 {[%emt 0:15:37]} g5 {[%emt 0:16:48]} 16. Bg3 {[%emt 0:07:39]} c6 {[%emt 0:06:27]} 17. Bxa6 {[%emt 0:00:06]} cxd5 {[%emt 0:00:07]} 18. Qxd5 {[%emt 0:00:47]} Qe7 {[%emt 0:13:03]} 19. Bc4 {[%emt 0:02:44]} b5 {[%emt 0:03:04]} 20. Bxb5 {[%emt 0:06:10]} Bb7 {[%emt 0:00:34]} 21. Qxc5 {[%emt 0:00:09]} Qxe4 {[%emt 0:00:13]} 22. Rf2 {[%emt 0:02:28]} gxf4 {[%emt 0:06:09]} 23. Bxf4 {[%emt 0:00:54]} Ne5 {[%emt 0:00:35]} 24. Bxe5 {[%emt 0:07:16]} fxe5 {[%emt 0:00:02]} 25. Qc4+ {[%emt 0:00:06]} Kh8 {[%emt 0:00:08]} 26. Qxe4 {[%emt 0:01:56]} Bxe4 {[%emt 0:00:02]} 27. Re2 {[%emt 0:01:27]} Bd5 {[%emt 0:00:16]} 28. Rd1 {[%emt 0:01:47]} Bxb3 {[%emt 0:00:37]} 29. axb3 {[%emt 0:00:06]} Rad8 {[%emt 0:00:12]} 30. Rxd8 {[%emt 0:03:46]} Rxd8 {[%emt 0:00:09]} 31. Kf2 {[%emt 0:00:20]} Bf6 {[%emt 0:00:17]} 32. Ke3 {[%emt 0:02:05]} Bg5+ {[%emt 0:00:40]} 33. Ke4 {[%emt 0:00:44]} Rd2 {[%emt 0:00:07]} 34. Kxe5 {[%emt 0:01:10]} Rxe2+ {[%emt 0:00:08]} 35. Bxe2 {[%emt 0:00:05]} Bc1 {[%emt 0:00:08]} 36. Bc4 {[%emt 0:01:23]} Kg7 {[%emt 0:00:45]} 37. b4 {[%emt 0:01:44]} Bxb2+ {[%emt 0:00:49]} 38. Kf5 {[%emt 0:00:32]} 1/2-1/2